[Event "Late-Titled-Tuesday-Blitz-March-19-2024"]
[Site "Chess.com"]
[Date "2024.03.19"]
[Round "8"]
[White "Schattman"]
[Black "sansanathalia"]
[Result "1/2-1/2"]
[WhiteElo "2503"]
[BlackElo "2400"]
[TimeControl "180+1"]
[EndTime "15:27:45 PDT"]
[Termination "Game drawn by repetition"]

1. c4 {[%clk 0:03:00.9]} 1... Nf6 {[%clk 0:02:58.1]} 2. b3 {[%clk 0:03:01.3]}
2... e6 {[%clk 0:02:58.1]} 3. Nf3 {[%clk 0:03:00.1]} 3... d5 {[%clk 0:02:58.5]}
4. Bb2 {[%clk 0:03:00.3]} 4... Be7 {[%clk 0:02:58.7]} 5. e3 {[%clk 0:03:00.8]}
5... O-O {[%clk 0:02:59.3]} 6. Nc3 {[%clk 0:02:59.9]} 6... b6 {[%clk 0:02:59.1]}
7. cxd5 {[%clk 0:02:59.5]} 7... Nxd5 {[%clk 0:02:50.6]} 8. Nxd5 {[%clk
0:02:59.2]} 8... exd5 {[%clk 0:02:51.5]} 9. Be2 {[%clk 0:02:56.5]} 9... Bb7
{[%clk 0:02:51.4]} 10. O-O {[%clk 0:02:55.6]} 10... c5 {[%clk 0:02:51.2]} 11. d4
{[%clk 0:02:55.4]} 11... Nd7 {[%clk 0:02:47.4]} 12. Rc1 {[%clk 0:02:46.3]} 12...
Rc8 {[%clk 0:02:40.9]} 13. a3 {[%clk 0:02:41.9]} 13... Nf6 {[%clk 0:02:36.7]}
14. dxc5 {[%clk 0:02:32.5]} 14... bxc5 {[%clk 0:02:34.1]} 15. Ne5 {[%clk
0:02:17.4]} 15... Qb6 {[%clk 0:02:25.9]} 16. Bf3 {[%clk 0:02:14]} 16... Rfd8
{[%clk 0:02:23.2]} 17. Qc2 {[%clk 0:02:13.9]} 17... a5 {[%clk 0:02:04.6]} 18. a4
{[%clk 0:02:09.7]} 18... h6 {[%clk 0:01:56.8]} 19. Rfd1 {[%clk 0:02:08]} 19...
Bd6 {[%clk 0:01:50.9]} 20. Ng4 {[%clk 0:01:58.3]} 20... Nxg4 {[%clk 0:01:46.9]}
21. Bxg4 {[%clk 0:01:58.8]} 21... Rc7 {[%clk 0:01:46.3]} 22. Bf3 {[%clk
0:01:48.7]} 22... Bf8 {[%clk 0:01:41.3]} 23. g3 {[%clk 0:01:49]} 23... c4 {[%clk
0:01:29.7]} 24. Qc3 {[%clk 0:01:30.1]} 24... Rdc8 {[%clk 0:01:20.3]} 25. bxc4
{[%clk 0:01:05.3]} 25... Rxc4 {[%clk 0:01:18.2]} 26. Qd2 {[%clk 0:00:44.9]}
26... Bb4 {[%clk 0:01:00.4]} 27. Qd3 {[%clk 0:00:44.6]} 27... Rxc1 {[%clk
0:00:53.9]} 28. Rxc1 {[%clk 0:00:38.9]} 28... Rxc1+ {[%clk 0:00:52.9]} 29. Bxc1
{[%clk 0:00:39.8]} 29... Qc6 {[%clk 0:00:50.7]} 30. Bb2 {[%clk 0:00:35.3]} 30...
Be7 {[%clk 0:00:20.1]} 31. Qb3 {[%clk 0:00:29.9]} 31... Bb4 {[%clk 0:00:18.9]}
32. h4 {[%clk 0:00:26.2]} 32... Kf8 {[%clk 0:00:18.6]} 33. Kg2 {[%clk
0:00:25.9]} 33... Qd7 {[%clk 0:00:17.6]} 34. Bc3 {[%clk 0:00:20.4]} 34... Bxc3
{[%clk 0:00:15.7]} 35. Qxc3 {[%clk 0:00:20.4]} 35... Qxa4 {[%clk 0:00:15.2]} 36.
Qc5+ {[%clk 0:00:17.2]} 36... Kg8 {[%clk 0:00:14.7]} 37. Qc7 {[%clk 0:00:16.1]}
37... Qb5 {[%clk 0:00:12]} 38. Qd8+ {[%clk 0:00:07.4]} 38... Kh7 {[%clk
0:00:12.3]} 39. Qe7 {[%clk 0:00:07.5]} 39... a4 {[%clk 0:00:10.9]} 40. Qxf7
{[%clk 0:00:07.1]} 40... a3 {[%clk 0:00:10.1]} 41. Qf5+ {[%clk 0:00:06.6]} 41...
Kg8 {[%clk 0:00:10.3]} 42. Qe6+ {[%clk 0:00:06.7]} 42... Kh7 {[%clk 0:00:09.4]}
43. Qf5+ {[%clk 0:00:06.5]} 43... Kg8 {[%clk 0:00:08.4]} 44. Qe6+ {[%clk
0:00:06.8]} 44... Kh7 {[%clk 0:00:08.2]} 45. Qf5+ {[%clk 0:00:06.9]} 1/2-1/2

[Event "Late-Titled-Tuesday-Blitz-March-19-2024"]
[Site "Chess.com"]
[Date "2024.03.19"]
[Round "8"]
[White "Jospem"]
[Black "KaydenTroffChess"]
[Result "1-0"]
[WhiteElo "3056"]
[BlackElo "2853"]
[TimeControl "180+1"]
[EndTime "15:27:46 PDT"]
[Termination "Jospem won by resignation"]

1. e4 {[%clk 0:03:00.9]} 1... c5 {[%clk 0:03:00]} 2. Nf3 {[%clk 0:03:01.6]} 2...
g6 {[%clk 0:02:59]} 3. c3 {[%clk 0:03:01.7]} 3... Nf6 {[%clk 0:02:58.1]} 4. Bd3
{[%clk 0:03:01.1]} 4... Bg7 {[%clk 0:02:54.4]} 5. h3 {[%clk 0:03:01]} 5... O-O
{[%clk 0:02:51.4]} 6. Bc2 {[%clk 0:03:01.3]} 6... Nc6 {[%clk 0:02:47.9]} 7. O-O
{[%clk 0:03:00.7]} 7... e5 {[%clk 0:02:33.5]} 8. d3 {[%clk 0:02:59.6]} 8... d5
{[%clk 0:02:31.7]} 9. Bg5 {[%clk 0:02:57.6]} 9... d4 {[%clk 0:02:27]} 10. Nbd2
{[%clk 0:02:57.4]} 10... dxc3 {[%clk 0:02:19.7]} 11. bxc3 {[%clk 0:02:58.3]}
11... b6 {[%clk 0:02:19.3]} 12. Nc4 {[%clk 0:02:57.3]} 12... Qc7 {[%clk
0:02:16.4]} 13. Bxf6 {[%clk 0:02:56.4]} 13... Bxf6 {[%clk 0:02:16.3]} 14. Ne3
{[%clk 0:02:57.3]} 14... Be6 {[%clk 0:02:15.6]} 15. Bb3 {[%clk 0:02:57.1]} 15...
Rad8 {[%clk 0:02:08.1]} 16. Nd5 {[%clk 0:02:55.2]} 16... Bxd5 {[%clk 0:02:07.2]}
17. Bxd5 {[%clk 0:02:55.5]} 17... Ne7 {[%clk 0:02:07]} 18. Bc4 {[%clk
0:02:48.4]} 18... h6 {[%clk 0:02:05.3]} 19. a4 {[%clk 0:02:47.2]} 19... Kh7
{[%clk 0:02:03.7]} 20. Qb3 {[%clk 0:02:42.6]} 20... Nc6 {[%clk 0:01:59.4]} 21.
Bd5 {[%clk 0:02:42.5]} 21... Kg7 {[%clk 0:01:54.2]} 22. Rfd1 {[%clk 0:02:35]}
22... Ne7 {[%clk 0:01:50.3]} 23. Bc4 {[%clk 0:02:34.5]} 23... Nc6 {[%clk
0:01:50.5]} 24. Qc2 {[%clk 0:02:27.6]} 24... Rd7 {[%clk 0:01:46.4]} 25. Bd5
{[%clk 0:02:22.8]} 25... Ne7 {[%clk 0:01:44.8]} 26. c4 {[%clk 0:02:22.2]} 26...
Nc6 {[%clk 0:01:37.8]} 27. Qe2 {[%clk 0:02:12.6]} 27... a5 {[%clk 0:01:25.9]}
28. g3 {[%clk 0:02:10.4]} 28... Nb4 {[%clk 0:01:25.7]} 29. Nh2 {[%clk
0:02:07.4]} 29... Re7 {[%clk 0:01:18.8]} 30. h4 {[%clk 0:02:03.6]} 30... h5
{[%clk 0:01:12.4]} 31. Nf1 {[%clk 0:02:03.3]} 31... Ree8 {[%clk 0:01:08.8]} 32.
Ne3 {[%clk 0:02:03.2]} 32... Qd7 {[%clk 0:01:05.5]} 33. Kh2 {[%clk 0:01:59.4]}
33... Rh8 {[%clk 0:01:04.3]} 34. Qf3 {[%clk 0:01:57.1]} 34... Ref8 {[%clk
0:01:04.2]} 35. Kg2 {[%clk 0:01:51.9]} 35... Bd8 {[%clk 0:01:01.3]} 36. Qe2
{[%clk 0:01:47.7]} 36... Bf6 {[%clk 0:00:59.7]} 37. Rf1 {[%clk 0:01:45.2]} 37...
Qe7 {[%clk 0:00:58.7]} 38. Rae1 {[%clk 0:01:34.5]} 38... Qd7 {[%clk 0:00:57.6]}
39. Qd1 {[%clk 0:01:34]} 39... Qe7 {[%clk 0:00:51.3]} 40. Rh1 {[%clk 0:01:33.5]}
40... Qd7 {[%clk 0:00:51.1]} 41. Reg1 {[%clk 0:01:29.3]} 41... Qe7 {[%clk
0:00:43.4]} 42. g4 {[%clk 0:01:16.1]} 42... Qd7 {[%clk 0:00:36.8]} 43. Kf1
{[%clk 0:01:13.8]} 43... hxg4 {[%clk 0:00:33.7]} 44. h5 {[%clk 0:01:03.5]} 44...
Bg5 {[%clk 0:00:24.8]} 45. Nxg4 {[%clk 0:00:59.4]} 45... Qe7 {[%clk 0:00:19.8]}
46. Qf3 {[%clk 0:00:46.2]} 46... f5 {[%clk 0:00:13.9]} 47. Nxe5 {[%clk
0:00:41.7]} 47... Qxe5 {[%clk 0:00:10.2]} 48. Rxg5 {[%clk 0:00:41.2]} 48... Rh6
{[%clk 0:00:09.1]} 49. Rxg6+ {[%clk 0:00:31.2]} 49... Rxg6 {[%clk 0:00:08.6]}
50. hxg6 {[%clk 0:00:32.1]} 50... fxe4 {[%clk 0:00:05.7]} 51. Rh7+ {[%clk
0:00:31.7]} 51... Kxg6 {[%clk 0:00:06.2]} 52. Bxe4+ {[%clk 0:00:32.4]} 52... Rf5
{[%clk 0:00:02.9]} 53. Bxf5+ {[%clk 0:00:31.5]} 53... Qxf5 {[%clk 0:00:02.3]}
54. Rg7+ {[%clk 0:00:31.6]} 54... Kxg7 {[%clk 0:00:01.9]} 55. Qxf5 {[%clk
0:00:31.7]} 1-0

[Event "Late-Titled-Tuesday-Blitz-March-19-2024"]
[Site "Chess.com"]
[Date "2024.03.19"]
[Round "8"]
[White "VladimirKramnik"]
[Black "atbenina64"]
[Result "0-1"]
[WhiteElo "2976"]
[BlackElo "2750"]
[TimeControl "180+1"]
[EndTime "15:27:46 PDT"]
[Termination "atbenina64 won on time"]

1. e4 {[%clk 0:03:00.9]} 1... c5 {[%clk 0:03:00]} 2. Nf3 {[%clk 0:03:00.6]} 2...
d6 {[%clk 0:03:00.3]} 3. d4 {[%clk 0:03:00.3]} 3... cxd4 {[%clk 0:03:01.2]} 4.
Nxd4 {[%clk 0:03:00.3]} 4... Nf6 {[%clk 0:03:01.9]} 5. Nc3 {[%clk 0:03:00.4]}
5... a6 {[%clk 0:03:02.6]} 6. g3 {[%clk 0:02:59.8]} 6... e5 {[%clk 0:03:01.8]}
7. Nf3 {[%clk 0:02:58.9]} 7... Be7 {[%clk 0:02:53.9]} 8. Nh4 {[%clk 0:02:58.4]}
8... O-O {[%clk 0:02:40.4]} 9. Bg2 {[%clk 0:02:58]} 9... g6 {[%clk 0:02:36]} 10.
O-O {[%clk 0:02:56.2]} 10... Nbd7 {[%clk 0:02:27.5]} 11. a4 {[%clk 0:02:54]}
11... Re8 {[%clk 0:02:22.8]} 12. Re1 {[%clk 0:02:47.6]} 12... b6 {[%clk
0:02:22.7]} 13. Bg5 {[%clk 0:02:34.8]} 13... Bb7 {[%clk 0:02:21.4]} 14. Nf3
{[%clk 0:02:21.6]} 14... Rc8 {[%clk 0:02:14.5]} 15. Nd2 {[%clk 0:02:16.7]} 15...
Kg7 {[%clk 0:01:46.6]} 16. Nf1 {[%clk 0:02:09.8]} 16... h6 {[%clk 0:01:34.7]}
17. Bd2 {[%clk 0:02:07.7]} 17... Nc5 {[%clk 0:01:31.1]} 18. Qc1 {[%clk
0:01:50.9]} 18... h5 {[%clk 0:01:23.3]} 19. Bh6+ {[%clk 0:01:43.9]} 19... Kh7
{[%clk 0:01:21.3]} 20. Bg5 {[%clk 0:01:40.8]} 20... Ne6 {[%clk 0:01:19.2]} 21.
Bxf6 {[%clk 0:01:39]} 21... Bxf6 {[%clk 0:01:20.1]} 22. Qd1 {[%clk 0:01:36.4]}
22... Nd4 {[%clk 0:01:13.5]} 23. h4 {[%clk 0:01:33.8]} 23... b5 {[%clk
0:01:10.4]} 24. axb5 {[%clk 0:01:32.4]} 24... axb5 {[%clk 0:01:11.3]} 25. Ne3
{[%clk 0:01:27.6]} 25... b4 {[%clk 0:01:09.8]} 26. Ncd5 {[%clk 0:01:18]} 26...
Bxd5 {[%clk 0:01:09.7]} 27. Nxd5 {[%clk 0:01:10.6]} 27... Nxc2 {[%clk
0:00:42.9]} 28. Ra7 {[%clk 0:00:59.1]} 28... Kg7 {[%clk 0:00:37.5]} 29. Rf1
{[%clk 0:00:52.2]} 29... Nd4 {[%clk 0:00:36.8]} 30. Kh2 {[%clk 0:00:46.5]} 30...
Bxh4 {[%clk 0:00:33.6]} 31. f4 {[%clk 0:00:35.7]} 31... Rf8 {[%clk 0:00:16.9]}
32. f5 {[%clk 0:00:16.2]} 32... Bxg3+ {[%clk 0:00:16.9]} 33. Kxg3 {[%clk
0:00:13.9]} 33... Qg5+ {[%clk 0:00:17.4]} 34. Kh3 {[%clk 0:00:09.9]} 34... Rc2
{[%clk 0:00:14.2]} 35. Qxc2 {[%clk 0:00:04.3]} 35... Nxc2 {[%clk 0:00:12.2]} 36.
fxg6 {[%clk 0:00:04.9]} 36... Qxg6 {[%clk 0:00:07.6]} 37. Kh2 {[%clk 0:00:03.6]}
37... Nd4 {[%clk 0:00:06.7]} 38. Rg1 {[%clk 0:00:03.6]} 38... Ne2 {[%clk
0:00:05.9]} 39. Rf1 {[%clk 0:00:03.4]} 39... Qg3+ {[%clk 0:00:06.1]} 40. Kh1
{[%clk 0:00:03]} 40... Qh4+ {[%clk 0:00:07]} 0-1

[Event "Late-Titled-Tuesday-Blitz-March-19-2024"]
[Site "Chess.com"]
[Date "2024.03.19"]
[Round "8"]
[White "Leo_C"]
[Black "bascheyaro"]
[Result "0-1"]
[WhiteElo "2654"]
[BlackElo "2797"]
[TimeControl "180+1"]
[EndTime "15:27:48 PDT"]
[Termination "bascheyaro won by checkmate"]

1. e4 {[%clk 0:02:57.4]} 1... e6 {[%clk 0:02:59.9]} 2. d4 {[%clk 0:02:57.4]}
2... d5 {[%clk 0:03:00.3]} 3. e5 {[%clk 0:02:57.9]} 3... c5 {[%clk 0:03:00.4]}
4. c3 {[%clk 0:02:58.6]} 4... Qb6 {[%clk 0:03:00.7]} 5. Nf3 {[%clk 0:02:58.6]}
5... Bd7 {[%clk 0:03:01.3]} 6. Be2 {[%clk 0:02:58.1]} 6... Bb5 {[%clk
0:03:01.6]} 7. Bxb5+ {[%clk 0:02:51.3]} 7... Qxb5 {[%clk 0:03:02.5]} 8. Na3
{[%clk 0:02:51.8]} 8... Qd7 {[%clk 0:03:02.5]} 9. Nc2 {[%clk 0:02:44.9]} 9...
Nc6 {[%clk 0:03:02.3]} 10. O-O {[%clk 0:02:44.4]} 10... a6 {[%clk 0:03:01]} 11.
Be3 {[%clk 0:02:28.8]} 11... cxd4 {[%clk 0:03:00.9]} 12. cxd4 {[%clk 0:02:27.3]}
12... Rc8 {[%clk 0:03:00.6]} 13. Rc1 {[%clk 0:02:24.9]} 13... Nge7 {[%clk
0:03:00.4]} 14. Qd3 {[%clk 0:02:05.5]} 14... h5 {[%clk 0:02:52.1]} 15. Bd2
{[%clk 0:02:02.6]} 15... Nf5 {[%clk 0:02:51.9]} 16. a4 {[%clk 0:01:57.1]} 16...
Be7 {[%clk 0:02:51.2]} 17. b4 {[%clk 0:01:54.4]} 17... O-O {[%clk 0:02:48.5]}
18. b5 {[%clk 0:01:53.6]} 18... axb5 {[%clk 0:02:48.6]} 19. axb5 {[%clk
0:01:54.5]} 19... Na7 {[%clk 0:02:48.7]} 20. Rb1 {[%clk 0:01:52.6]} 20... Nxb5
{[%clk 0:02:43.2]} 21. Qxb5 {[%clk 0:01:40.2]} 21... Qxb5 {[%clk 0:02:41.6]} 22.
Rxb5 {[%clk 0:01:41.1]} 22... Rxc2 {[%clk 0:02:42]} 23. Rxb7 {[%clk 0:01:41.7]}
23... Rfc8 {[%clk 0:02:07.9]} 24. h3 {[%clk 0:01:33.9]} 24... Bf8 {[%clk
0:01:41.4]} 25. Bg5 {[%clk 0:01:28.3]} 25... Ba3 {[%clk 0:01:36]} 26. g4 {[%clk
0:01:07.2]} 26... hxg4 {[%clk 0:01:35.9]} 27. hxg4 {[%clk 0:01:08.1]} 27... Nh6
{[%clk 0:01:36.3]} 28. Bxh6 {[%clk 0:01:01.6]} 28... gxh6 {[%clk 0:01:37.2]} 29.
Ra1 {[%clk 0:01:01]} 29... R8c3 {[%clk 0:01:17]} 30. Kg2 {[%clk 0:01:00.6]}
30... Re2 {[%clk 0:01:00.3]} 31. g5 {[%clk 0:00:52.3]} 31... Re4 {[%clk
0:00:53.4]} 32. Nh2 {[%clk 0:00:18.5]} 32... hxg5 {[%clk 0:00:51.2]} 33. Ra7
{[%clk 0:00:18.4]} 33... Bf8 {[%clk 0:00:48.3]} 34. Rb1 {[%clk 0:00:16.7]} 34...
Rxd4 {[%clk 0:00:39.8]} 35. Rb8 {[%clk 0:00:11.6]} 35... Rb4 {[%clk 0:00:38.7]}
36. Rd8 {[%clk 0:00:08.9]} 36... Kg7 {[%clk 0:00:35.7]} 37. Raa8 {[%clk
0:00:04.3]} 37... Bc5 {[%clk 0:00:32]} 38. Rg8+ {[%clk 0:00:04.4]} 38... Kh6
{[%clk 0:00:31.2]} 39. f3 {[%clk 0:00:04.1]} 39... Rc2+ {[%clk 0:00:21.7]} 40.
Kg3 {[%clk 0:00:04.4]} 40... Bf2+ {[%clk 0:00:21.7]} 41. Kg2 {[%clk 0:00:02.5]}
41... Bd4+ {[%clk 0:00:21.7]} 42. Kh3 {[%clk 0:00:02.4]} 42... Bxe5 {[%clk
0:00:16.9]} 43. Ng4+ {[%clk 0:00:02.8]} 43... Rxg4 {[%clk 0:00:17.1]} 44. Kxg4
{[%clk 0:00:02]} 44... Rg2+ {[%clk 0:00:17.4]} 45. Kh3 {[%clk 0:00:02.5]} 45...
Rh2+ {[%clk 0:00:17.8]} 46. Kg4 {[%clk 0:00:02.9]} 46... f5# {[%clk 0:00:18.4]}
0-1

[Event "Late-Titled-Tuesday-Blitz-March-19-2024"]
[Site "Chess.com"]
[Date "2024.03.19"]
[Round "8"]
[White "AndreyNeves"]
[Black "ilushka"]
[Result "0-1"]
[WhiteElo "2130"]
[BlackElo "2398"]
[TimeControl "180+1"]
[EndTime "15:27:49 PDT"]
[Termination "ilushka won by resignation"]

1. d4 {[%clk 0:02:57.9]} 1... d5 {[%clk 0:02:59.7]} 2. c4 {[%clk 0:02:57.4]}
2... e6 {[%clk 0:02:57.6]} 3. Nf3 {[%clk 0:02:57.2]} 3... Nf6 {[%clk 0:02:58]}
4. g3 {[%clk 0:02:57]} 4... dxc4 {[%clk 0:02:57.5]} 5. Bg2 {[%clk 0:02:56.9]}
5... c5 {[%clk 0:02:57.3]} 6. O-O {[%clk 0:02:56.7]} 6... Nc6 {[%clk 0:02:56.1]}
7. dxc5 {[%clk 0:02:55]} 7... Qxd1 {[%clk 0:02:55]} 8. Rxd1 {[%clk 0:02:54.9]}
8... Bxc5 {[%clk 0:02:55.5]} 9. Nbd2 {[%clk 0:02:54.8]} 9... c3 {[%clk 0:02:55]}
10. bxc3 {[%clk 0:02:54.6]} 10... O-O {[%clk 0:02:51]} 11. Nb3 {[%clk
0:02:54.2]} 11... Bb6 {[%clk 0:02:50.4]} 12. Ba3 {[%clk 0:02:49.7]} 12... Re8
{[%clk 0:02:48.5]} 13. Nfd4 {[%clk 0:02:45.9]} 13... Bd7 {[%clk 0:02:43.1]} 14.
Nxc6 {[%clk 0:02:41.5]} 14... Bxc6 {[%clk 0:02:44]} 15. Bxc6 {[%clk 0:02:40.6]}
15... bxc6 {[%clk 0:02:44.9]} 16. c4 {[%clk 0:02:33.5]} 16... Rad8 {[%clk
0:02:41.9]} 17. Nc5 {[%clk 0:02:02.5]} 17... a6 {[%clk 0:02:05]} 18. Rab1 {[%clk
0:01:57.2]} 18... Bxc5 {[%clk 0:02:04]} 19. Bxc5 {[%clk 0:01:56.1]} 19... Rxd1+
{[%clk 0:02:04.9]} 20. Rxd1 {[%clk 0:01:54.9]} 20... Rb8 {[%clk 0:02:05.8]} 21.
Bb6 {[%clk 0:01:44.3]} 21... Kf8 {[%clk 0:02:01.3]} 22. Rd8+ {[%clk 0:01:40.7]}
22... Rxd8 {[%clk 0:01:59.7]} 23. Bxd8 {[%clk 0:01:41.6]} 23... Ne4 {[%clk
0:01:56.7]} 24. Bc7 {[%clk 0:01:20.5]} 24... Nc3 {[%clk 0:01:52.9]} 25. a4
{[%clk 0:00:57.3]} 25... Nxa4 {[%clk 0:01:49.8]} 26. Kf1 {[%clk 0:00:51.1]}
26... Ke7 {[%clk 0:01:42.6]} 27. Ke1 {[%clk 0:00:49.9]} 27... Nb2 {[%clk
0:01:38.1]} 28. c5 {[%clk 0:00:46.9]} 28... Na4 {[%clk 0:01:22.5]} 29. Bd6+
{[%clk 0:00:45.4]} 29... Kd7 {[%clk 0:01:14.2]} 30. Bf8 {[%clk 0:00:45.1]} 30...
g6 {[%clk 0:01:13.3]} 31. Kd2 {[%clk 0:00:44.8]} 31... Nb2 {[%clk 0:00:54.3]}
32. Kc3 {[%clk 0:00:40.4]} 32... Nd1+ {[%clk 0:00:54.1]} 33. Kb4 {[%clk
0:00:25.2]} 33... Nxf2 {[%clk 0:00:53.9]} 34. Ka5 {[%clk 0:00:24.5]} 34... Ng4
{[%clk 0:00:47.9]} 35. h4 {[%clk 0:00:20.1]} 35... Nf2 {[%clk 0:00:47.9]} 36.
Kxa6 {[%clk 0:00:18.3]} 36... f5 {[%clk 0:00:46.5]} 37. Bg7 {[%clk 0:00:15.6]}
37... Ne4 {[%clk 0:00:46.3]} 38. Be5 {[%clk 0:00:15.7]} 38... Nxc5+ {[%clk
0:00:46.3]} 39. Kb6 {[%clk 0:00:14.1]} 39... Ne4 {[%clk 0:00:45.1]} 40. e3
{[%clk 0:00:13.6]} 40... h6 {[%clk 0:00:33.7]} 41. h5 {[%clk 0:00:10.5]} 41...
gxh5 {[%clk 0:00:32.3]} 42. Bf4 {[%clk 0:00:10.8]} 42... Nc3 {[%clk 0:00:20.8]}
43. Bxh6 {[%clk 0:00:10.2]} 43... Ne2 {[%clk 0:00:21.2]} 44. Bf4 {[%clk
0:00:06.4]} 44... Nxf4 {[%clk 0:00:21.1]} 45. exf4 {[%clk 0:00:07.3]} 45... Kd6
{[%clk 0:00:21.2]} 0-1

[Event "Late-Titled-Tuesday-Blitz-March-19-2024"]
[Site "Chess.com"]
[Date "2024.03.19"]
[Round "8"]
[White "norwaytoadog"]
[Black "Willhaven3"]
[Result "0-1"]
[WhiteElo "2358"]
[BlackElo "2503"]
[TimeControl "180+1"]
[EndTime "15:27:51 PDT"]
[Termination "Willhaven3 won on time"]

1. e4 {[%clk 0:02:59.9]} 1... Nf6 {[%clk 0:02:59.8]} 2. e5 {[%clk 0:02:59]} 2...
Nd5 {[%clk 0:03:00.4]} 3. d4 {[%clk 0:02:58.6]} 3... d6 {[%clk 0:03:00.8]} 4.
Nf3 {[%clk 0:02:58.9]} 4... g6 {[%clk 0:03:00.4]} 5. Bc4 {[%clk 0:02:58.1]} 5...
Nb6 {[%clk 0:03:00.1]} 6. Bb3 {[%clk 0:02:58.1]} 6... Bg7 {[%clk 0:03:00.6]} 7.
Ng5 {[%clk 0:02:55.8]} 7... d5 {[%clk 0:02:59.4]} 8. Qf3 {[%clk 0:02:52.7]} 8...
f6 {[%clk 0:02:58.9]} 9. exf6 {[%clk 0:02:44.9]} 9... exf6 {[%clk 0:02:59.8]}
10. O-O {[%clk 0:02:36]} 10... O-O {[%clk 0:02:46]} 11. Nh3 {[%clk 0:02:32.5]}
11... Nc6 {[%clk 0:02:42.7]} 12. c3 {[%clk 0:02:23.6]} 12... Bf5 {[%clk
0:02:42.8]} 13. Nd2 {[%clk 0:02:13.2]} 13... Kh8 {[%clk 0:02:42.2]} 14. Nf4
{[%clk 0:02:10.9]} 14... Ne7 {[%clk 0:02:35]} 15. Nd3 {[%clk 0:01:56]} 15... c6
{[%clk 0:02:22.8]} 16. Nc5 {[%clk 0:01:52.1]} 16... Qc7 {[%clk 0:02:19.1]} 17.
Re1 {[%clk 0:01:50.3]} 17... Rae8 {[%clk 0:02:06.7]} 18. Nf1 {[%clk 0:01:43.9]}
18... Nec8 {[%clk 0:02:02.6]} 19. Bf4 {[%clk 0:01:40.6]} 19... Qf7 {[%clk
0:01:57.3]} 20. Ng3 {[%clk 0:01:29.6]} 20... Be6 {[%clk 0:01:47.6]} 21. h4
{[%clk 0:01:19.2]} 21... Re7 {[%clk 0:01:47.3]} 22. a4 {[%clk 0:01:12.8]} 22...
a5 {[%clk 0:01:42]} 23. Re3 {[%clk 0:01:08.7]} 23... Rfe8 {[%clk 0:01:42.2]} 24.
Rae1 {[%clk 0:01:08]} 24... Nc4 {[%clk 0:01:37.4]} 25. Bxc4 {[%clk 0:00:53.7]}
25... dxc4 {[%clk 0:01:38.3]} 26. Nxe6 {[%clk 0:00:45.4]} 26... Rxe6 {[%clk
0:01:39.2]} 27. Rxe6 {[%clk 0:00:43.1]} 27... Rxe6 {[%clk 0:01:40.1]} 28. Re3
{[%clk 0:00:23.7]} 28... Nb6 {[%clk 0:01:38.5]} 29. Qe2 {[%clk 0:00:23]} 29...
Rxe3 {[%clk 0:01:38.3]} 30. fxe3 {[%clk 0:00:19.8]} 30... Nxa4 {[%clk
0:01:35.6]} 31. e4 {[%clk 0:00:18.1]} 31... Nb6 {[%clk 0:01:35.5]} 32. h5 {[%clk
0:00:17]} 32... g5 {[%clk 0:01:33.8]} 33. Bd6 {[%clk 0:00:13.5]} 33... Qe6
{[%clk 0:01:32.6]} 34. Bc5 {[%clk 0:00:12.4]} 34... Nc8 {[%clk 0:01:32.3]} 35.
Nf5 {[%clk 0:00:12]} 35... Kg8 {[%clk 0:01:14.2]} 36. Qf3 {[%clk 0:00:11.2]}
36... Bf8 {[%clk 0:01:05]} 37. Bxf8 {[%clk 0:00:10.5]} 37... Kxf8 {[%clk
0:01:04.7]} 38. h6 {[%clk 0:00:10.1]} 38... Kf7 {[%clk 0:01:02.4]} 39. Ne3
{[%clk 0:00:08.4]} 39... b5 {[%clk 0:00:57.5]} 40. Qh5+ {[%clk 0:00:07.5]} 40...
Kf8 {[%clk 0:00:56.5]} 41. Ng4 {[%clk 0:00:05.4]} 41... Qxe4 {[%clk 0:00:52.3]}
42. Nxf6 {[%clk 0:00:04.5]} 42... Qe1+ {[%clk 0:00:51.4]} 43. Kh2 {[%clk
0:00:04.9]} 43... Qh4+ {[%clk 0:00:49.3]} 44. Qxh4 {[%clk 0:00:05]} 44... gxh4
{[%clk 0:00:50.2]} 45. Nd7+ {[%clk 0:00:03.6]} 45... Ke7 {[%clk 0:00:49.7]} 46.
Nc5 {[%clk 0:00:03.7]} 46... Kf6 {[%clk 0:00:38.2]} 47. Kh3 {[%clk 0:00:03.7]}
47... Kg5 {[%clk 0:00:38.5]} 48. Ne6+ {[%clk 0:00:03.5]} 48... Kxh6 {[%clk
0:00:38.7]} 49. Kxh4 {[%clk 0:00:03.5]} 49... Nb6 {[%clk 0:00:38.1]} 50. Kg4
{[%clk 0:00:02.6]} 50... Kg6 {[%clk 0:00:38.2]} 51. Kf4 {[%clk 0:00:02.7]} 51...
Kf6 {[%clk 0:00:38.3]} 52. Nc5 {[%clk 0:00:01.7]} 52... a4 {[%clk 0:00:34.8]}
0-1